[Event "Titled Tuesday Blitz June 14 Late 2022"]
[White "Kamsky, Gata"]
[Black "Korchmar, Vasiliy"]
[WhiteFideId "2000024"]
[BlackFideId "24131750"]
[WhiteElo "2645"]
[BlackElo "2370"]
[Result "1-0"]
[Round "04"]
[TimeControl "180+1"]
[Date "2022.06.14"]
[WhiteClock "0:00:42"]
[BlackClock "0:00:03"]

1. e4 {[%clk 0:03:00]}  c5 {[%clk 0:02:59]} 2. Nf3 {[%clk 0:03:00]}  d6 {[%clk 0:02:59]} 3. Bb5+ {[%clk 0:02:55]}  Nd7 {[%clk 0:02:59]} 4. a4 {[%clk 0:02:55]}  Nf6 {[%clk 0:02:52]} 5. Nc3 {[%clk 0:02:54]}  g6 {[%clk 0:02:46]} 6. O-O {[%clk 0:02:51]}  Bg7 {[%clk 0:02:43]} 7. Re1 {[%clk 0:02:46]}  O-O {[%clk 0:02:42]} 8. a5 {[%clk 0:02:44]}  a6 {[%clk 0:02:03]} 9. Bc4 {[%clk 0:02:41]}  Nb8 {[%clk 0:02:03]} 10. d4 {[%clk 0:02:40]}  Nc6 {[%clk 0:02:00]} 11. e5 {[%clk 0:02:26]}  Ne8 {[%clk 0:01:54]} 12. dxc5 {[%clk 0:02:14]}  Bg4 {[%clk 0:01:53]} 13. cxd6 {[%clk 0:02:12]}  exd6 {[%clk 0:01:39]} 14. Be2 {[%clk 0:02:10]}  dxe5 {[%clk 0:01:29]} 15. Qxd8 {[%clk 0:02:05]}  Rxd8 {[%clk 0:01:30]} 16. Be3 {[%clk 0:02:03]}  Nd6 {[%clk 0:01:19]} 17. Bc5 {[%clk 0:01:55]}  Rfe8 {[%clk 0:01:17]} 18. h3 {[%clk 0:01:42]}  Bf5 {[%clk 0:01:10]} 19. Bb6 {[%clk 0:01:31]}  Rc8 {[%clk 0:01:05]} 20. Red1 {[%clk 0:01:26]}  Bf8 {[%clk 0:00:40]} 21. Nd5 {[%clk 0:01:26]}  Kg7 {[%clk 0:00:33]} 22. c3 {[%clk 0:01:24]}  Ne4 {[%clk 0:00:28]} 23. g4 {[%clk 0:01:21]}  Be6 {[%clk 0:00:25]} 24. Nc7 {[%clk 0:01:21]}  Re7 {[%clk 0:00:24]} 25. Nxe6+ {[%clk 0:01:21]}  Rxe6 {[%clk 0:00:24]} 26. Rd7 {[%clk 0:01:09]}  Nc5 {[%clk 0:00:12]} 27. Rd5 {[%clk 0:01:07]}  Nb3 {[%clk 0:00:07]} 28. Rad1 {[%clk 0:01:05]}  e4 {[%clk 0:00:05]} 29. Ng5 {[%clk 0:01:04]}  Re5 {[%clk 0:00:06]} 30. Rxe5 {[%clk 0:01:03]}  Nxe5 {[%clk 0:00:06]} 31. Nxe4 {[%clk 0:01:03]}  Bc5 {[%clk 0:00:03]} 32. Nxc5 {[%clk 0:01:02]}  Nxc5 {[%clk 0:00:03]} 33. b4 {[%clk 0:00:58]}  Na4 {[%clk 0:00:02]} 34. Bd4 {[%clk 0:00:57]}  f6 {[%clk 0:00:02]} 35. Bxe5 {[%clk 0:00:57]}  fxe5 {[%clk 0:00:03]} 36. Rd7+ {[%clk 0:00:57]}  Kf6 {[%clk 0:00:03]} 37. c4 {[%clk 0:00:56]}  Nc3 {[%clk 0:00:03]} 38. Bf1 {[%clk 0:00:56]}  e4 {[%clk 0:00:02]} 39. Rxb7 {[%clk 0:00:56]}  Rd8 {[%clk 0:00:02]} 40. b5 {[%clk 0:00:55]}  axb5 {[%clk 0:00:01]} 41. cxb5 {[%clk 0:00:55]}  Rd1 {[%clk 0:00:02]} 42. Kg2 {[%clk 0:00:48]}  Nd5 {[%clk 0:00:02]} 43. Bc4 {[%clk 0:00:48]}  Nf4+ {[%clk 0:00:03]} 44. Kg3 {[%clk 0:00:48]}  g5 {[%clk 0:00:03]} 45. Rf7+ {[%clk 0:00:42]}  Ke5 {[%clk 0:00:03]} 46. Rf5+ {[%clk 0:00:42]}  Kd4 {[%clk 0:00:03]} 47. Rxg5 {[%clk 0:00:42]} 1-0


[Site "https://www.chess.com"]

[Event "Titled Tuesday Blitz June 14 Late 2022"]
[White "Kubatko, Ivan"]
[Black "Rychkov, Roman"]
[WhiteFideId "24111473"]
[BlackFideId "30985595"]
[WhiteElo "2285"]
[BlackElo "2333"]
[Result "1/2-1/2"]
[Round "04"]
[TimeControl "180+1"]
[Date "2022.06.15"]
[WhiteClock "0:00:04"]
[BlackClock "0:00:03"]

1. e4 {[%clk 0:02:59]}  e5 {[%clk 0:03:00]} 2. Nf3 {[%clk 0:02:58]}  Nc6 {[%clk 0:03:01]} 3. Nc3 {[%clk 0:02:58]}  Nf6 {[%clk 0:03:01]} 4. g3 {[%clk 0:02:59]}  g6 {[%clk 0:02:57]} 5. d4 {[%clk 0:02:57]}  exd4 {[%clk 0:02:57]} 6. Nxd4 {[%clk 0:02:57]}  Bb4 {[%clk 0:02:53]} 7. Bg2 {[%clk 0:02:51]}  Bc5 {[%clk 0:02:11]} 8. Be3 {[%clk 0:02:44]}  Qe7 {[%clk 0:01:59]} 9. O-O {[%clk 0:02:27]}  O-O {[%clk 0:01:28]} 10. Nxc6 {[%clk 0:01:48]}  dxc6 {[%clk 0:01:22]} 11. Bg5 {[%clk 0:01:45]}  Qe6 {[%clk 0:01:04]} 12. Qe2 {[%clk 0:01:11]}  Re8 {[%clk 0:00:59]} 13. h3 {[%clk 0:01:07]}  Kg7 {[%clk 0:00:56]} 14. Kh2 {[%clk 0:01:03]}  h6 {[%clk 0:00:56]} 15. Be3 {[%clk 0:01:01]}  Bxe3 {[%clk 0:00:37]} 16. Qxe3 {[%clk 0:01:02]}  Qc4 {[%clk 0:00:26]} 17. b3 {[%clk 0:00:53]}  Qb4 {[%clk 0:00:21]} 18. a3 {[%clk 0:00:52]}  Qb6 {[%clk 0:00:22]} 19. Qf3 {[%clk 0:00:27]}  Be6 {[%clk 0:00:18]} 20. Rad1 {[%clk 0:00:27]}  Rad8 {[%clk 0:00:16]} 21. Na4 {[%clk 0:00:27]}  Qa5 {[%clk 0:00:16]} 22. Qe3 {[%clk 0:00:22]}  Bg4 {[%clk 0:00:11]} 23. f3 {[%clk 0:00:20]}  Bc8 {[%clk 0:00:09]} 24. Qc3 {[%clk 0:00:14]}  Qxc3 {[%clk 0:00:06]} 25. Nxc3 {[%clk 0:00:15]}  Be6 {[%clk 0:00:06]} 26. Kg1 {[%clk 0:00:14]}  Rxd1 {[%clk 0:00:06]} 27. Rxd1 {[%clk 0:00:14]}  Nh5 {[%clk 0:00:06]} 28. Kf2 {[%clk 0:00:14]}  f5 {[%clk 0:00:06]} 29. exf5 {[%clk 0:00:13]}  gxf5 {[%clk 0:00:06]} 30. Ne2 {[%clk 0:00:10]}  Kf6 {[%clk 0:00:06]} 31. Nd4 {[%clk 0:00:10]}  Bf7 {[%clk 0:00:05]} 32. g4 {[%clk 0:00:08]}  fxg4 {[%clk 0:00:06]} 33. fxg4 {[%clk 0:00:06]}  Nf4 {[%clk 0:00:06]} 34. Bf1 {[%clk 0:00:07]}  Kg5 {[%clk 0:00:06]} 35. Nf3+ {[%clk 0:00:07]}  Kf6 {[%clk 0:00:06]} 36. Rd4 {[%clk 0:00:07]}  Ne6 {[%clk 0:00:05]} 37. Rd2 {[%clk 0:00:07]}  Nf4 {[%clk 0:00:04]} 38. Kg3 {[%clk 0:00:07]}  Ng6 {[%clk 0:00:04]} 39. h4 {[%clk 0:00:07]}  Bd5 {[%clk 0:00:05]} 40. g5+ {[%clk 0:00:06]}  hxg5 {[%clk 0:00:05]} 41. hxg5+ {[%clk 0:00:06]}  Kg7 {[%clk 0:00:05]} 42. Nd4 {[%clk 0:00:05]}  Rf8 {[%clk 0:00:05]} 43. Bh3 {[%clk 0:00:05]}  Nf4 {[%clk 0:00:05]} 44. Nf5+ {[%clk 0:00:03]}  Kh8 {[%clk 0:00:03]} 45. Ne3 {[%clk 0:00:03]}  Ng6 {[%clk 0:00:03]} 46. Nxd5 {[%clk 0:00:03]}  cxd5 {[%clk 0:00:03]} 47. Rxd5 {[%clk 0:00:03]}  Kg7 {[%clk 0:00:04]} 48. Rf5 {[%clk 0:00:03]}  Re8 {[%clk 0:00:04]} 49. Rf3 {[%clk 0:00:03]}  Re1 {[%clk 0:00:05]} 50. Rf2 {[%clk 0:00:03]}  Rc1 {[%clk 0:00:05]} 51. Bg2 {[%clk 0:00:03]}  Ne5 {[%clk 0:00:05]} 52. Be4 {[%clk 0:00:04]}  c6 {[%clk 0:00:05]} 53. Kf4 {[%clk 0:00:04]}  Nf7 {[%clk 0:00:05]} 54. g6 {[%clk 0:00:03]}  Nd6 {[%clk 0:00:05]} 55. Ke5 {[%clk 0:00:03]}  Nxe4 {[%clk 0:00:05]} 56. Kxe4 {[%clk 0:00:04]}  Kxg6 {[%clk 0:00:06]} 57. Kd3 {[%clk 0:00:04]}  Ra1 {[%clk 0:00:06]} 58. a4 {[%clk 0:00:04]}  Re1 {[%clk 0:00:07]} 59. Rf8 {[%clk 0:00:03]}  Re7 {[%clk 0:00:07]} 60. Ra8 {[%clk 0:00:03]}  a6 {[%clk 0:00:07]} 61. Kc4 {[%clk 0:00:04]}  Re2 {[%clk 0:00:05]} 62. c3 {[%clk 0:00:04]}  Re5 {[%clk 0:00:06]} 63. b4 {[%clk 0:00:04]}  b5+ {[%clk 0:00:06]} 64. Kb3 {[%clk 0:00:03]}  bxa4+ {[%clk 0:00:06]} 65. Kxa4 {[%clk 0:00:04]}  Re3 {[%clk 0:00:05]} 66. Kb3 {[%clk 0:00:04]}  Kf5 {[%clk 0:00:03]} 67. Rxa6 {[%clk 0:00:05]}  Re6 {[%clk 0:00:04]} 68. c4 {[%clk 0:00:04]}  Ke5 {[%clk 0:00:04]} 69. b5 {[%clk 0:00:04]}  cxb5 {[%clk 0:00:04]} 70. Rxe6+ {[%clk 0:00:03]}  Kxe6 {[%clk 0:00:05]} 71. cxb5 {[%clk 0:00:04]}  Kd7 {[%clk 0:00:05]} 72. Kb4 {[%clk 0:00:04]}  Kc8 {[%clk 0:00:03]} 1/2-1/2


[Site "https://www.chess.com"]

[Event "Titled Tuesday Blitz June 14 Late 2022"]
[White "Lashkin, Jegor"]
[Black "Wachinger, Guenther"]
[WhiteFideId "13907808"]
[BlackFideId "4604261"]
[WhiteElo "2368"]
[BlackElo "2212"]
[Result "1-0"]
[Round "04"]
[TimeControl "180+1"]
[Date "2022.06.14"]
[WhiteClock "0:01:19"]
[BlackClock "0:00:30"]

1. Nf3 {[%clk 0:03:00]}  d5 {[%clk 0:02:59]} 2. e3 {[%clk 0:03:00]}  e6 {[%clk 0:02:57]} 3. b3 {[%clk 0:03:00]}  Nf6 {[%clk 0:02:57]} 4. Bb2 {[%clk 0:03:01]}  Be7 {[%clk 0:02:58]} 5. d4 {[%clk 0:03:01]}  O-O {[%clk 0:02:58]} 6. Bd3 {[%clk 0:03:02]}  c5 {[%clk 0:02:58]} 7. O-O {[%clk 0:03:02]}  Nc6 {[%clk 0:02:59]} 8. Nbd2 {[%clk 0:03:02]}  a6 {[%clk 0:02:54]} 9. c4 {[%clk 0:02:57]}  dxc4 {[%clk 0:02:49]} 10. bxc4 {[%clk 0:02:58]}  cxd4 {[%clk 0:02:43]} 11. exd4 {[%clk 0:02:59]}  b6 {[%clk 0:02:41]} 12. Rc1 {[%clk 0:02:52]}  Bb7 {[%clk 0:02:41]} 13. Qe2 {[%clk 0:02:52]}  Rc8 {[%clk 0:02:38]} 14. Rfd1 {[%clk 0:02:52]}  h6 {[%clk 0:02:01]} 15. Nf1 {[%clk 0:02:51]}  Bd6 {[%clk 0:01:38]} 16. Ne3 {[%clk 0:02:50]}  Re8 {[%clk 0:01:26]} 17. Bb1 {[%clk 0:02:40]}  Na5 {[%clk 0:01:19]} 18. Ne5 {[%clk 0:02:28]}  Qc7 {[%clk 0:01:14]} 19. h3 {[%clk 0:01:49]}  Red8 {[%clk 0:01:14]} 20. N5g4 {[%clk 0:01:38]}  Nxg4 {[%clk 0:01:13]} 21. Qxg4 {[%clk 0:01:39]}  Bf8 {[%clk 0:01:04]} 22. d5 {[%clk 0:01:37]}  exd5 {[%clk 0:00:58]} 23. Nf5 {[%clk 0:01:36]}  g6 {[%clk 0:00:50]} 24. Qd4 {[%clk 0:01:34]}  f6 {[%clk 0:00:43]} 25. Qxf6 {[%clk 0:01:34]}  Qh7 {[%clk 0:00:43]} 26. Nxh6+ {[%clk 0:01:20]}  Bxh6 {[%clk 0:00:42]} 27. Bxg6 {[%clk 0:01:19]}  Qg7 {[%clk 0:00:30]} 28. Qe6+ {[%clk 0:01:19]} 1-0


[Site "https://www.chess.com"]

[Event "Titled Tuesday Blitz June 14 Late 2022"]
[White "Malka, Samuel"]
[Black "Tica, Sven"]
[WhiteFideId "20643675"]
[BlackFideId "14526948"]
[WhiteElo "2488"]
[BlackElo "2346"]
[Result "0-1"]
[Round "04"]
[TimeControl "180+1"]
[Date "2022.06.15"]
[WhiteClock "0:00:01"]
[BlackClock "0:00:55"]

1. Nf3 {[%clk 0:03:00]}  d5 {[%clk 0:02:59]} 2. g3 {[%clk 0:03:00]}  Nf6 {[%clk 0:03:00]} 3. Bg2 {[%clk 0:03:00]}  e6 {[%clk 0:03:00]} 4. c4 {[%clk 0:02:53]}  Be7 {[%clk 0:03:00]} 5. d4 {[%clk 0:02:52]}  O-O {[%clk 0:03:01]} 6. O-O {[%clk 0:02:53]}  dxc4 {[%clk 0:03:01]} 7. Qc2 {[%clk 0:02:53]}  b5 {[%clk 0:03:01]} 8. a4 {[%clk 0:02:49]}  b4 {[%clk 0:03:02]} 9. Nfd2 {[%clk 0:02:45]}  Nd5 {[%clk 0:03:02]} 10. Nxc4 {[%clk 0:02:32]}  c5 {[%clk 0:03:03]} 11. dxc5 {[%clk 0:01:50]}  Ba6 {[%clk 0:03:03]} 12. Ne3 {[%clk 0:01:41]}  Nd7 {[%clk 0:03:02]} 13. Nxd5 {[%clk 0:01:31]}  exd5 {[%clk 0:03:03]} 14. c6 {[%clk 0:01:29]}  Rc8 {[%clk 0:03:03]} 15. Bf4 {[%clk 0:01:25]}  Nc5 {[%clk 0:03:00]} 16. Rd1 {[%clk 0:01:21]}  d4 {[%clk 0:02:57]} 17. h4 {[%clk 0:01:18]}  Re8 {[%clk 0:02:43]} 18. c7 {[%clk 0:00:50]}  Qd7 {[%clk 0:02:39]} 19. Nd2 {[%clk 0:00:47]}  Bxe2 {[%clk 0:02:35]} 20. Re1 {[%clk 0:00:47]}  d3 {[%clk 0:02:29]} 21. Qc4 {[%clk 0:00:46]}  Bd6 {[%clk 0:02:22]} 22. Rac1 {[%clk 0:00:33]}  Bxf4 {[%clk 0:02:06]} 23. Qxf4 {[%clk 0:00:33]}  Rxc7 {[%clk 0:02:02]} 24. Qxb4 {[%clk 0:00:32]}  Ne6 {[%clk 0:01:56]} 25. Rxc7 {[%clk 0:00:29]}  Qxc7 {[%clk 0:01:56]} 26. Nc4 {[%clk 0:00:28]}  Rb8 {[%clk 0:01:51]} 27. Qc3 {[%clk 0:00:28]}  Rc8 {[%clk 0:01:51]} 28. b3 {[%clk 0:00:29]}  Qc5 {[%clk 0:01:41]} 29. Qd2 {[%clk 0:00:28]}  Nd4 {[%clk 0:01:39]} 30. Be4 {[%clk 0:00:20]}  Re8 {[%clk 0:01:28]} 31. Qf4 {[%clk 0:00:12]}  Ne6 {[%clk 0:01:12]} 32. Qd2 {[%clk 0:00:09]}  Rd8 {[%clk 0:01:09]} 33. Ne3 {[%clk 0:00:05]}  Nd4 {[%clk 0:01:06]} 34. Bg2 {[%clk 0:00:04]}  Nxb3 {[%clk 0:01:05]} 35. Qb2 {[%clk 0:00:03]}  Nd4 {[%clk 0:01:02]} 36. Qd2 {[%clk 0:00:01]}  g6 {[%clk 0:00:59]} 37. Qb2 {[%clk 0:00:01]}  h5 {[%clk 0:00:58]} 38. Qd2 {[%clk 0:00:02]}  Rb8 {[%clk 0:00:59]} 39. Bh3 {[%clk 0:00:01]}  Nf3+ {[%clk 0:00:55]} 0-1


[Site "https://www.chess.com"]

[Event "Titled Tuesday Blitz June 14 Late 2022"]
[White "Maltsevskaya, Aleksandra"]
[Black "Gallegos Diaz, Carlos Alberto"]
[WhiteFideId "24174041"]
[BlackFideId "3900886"]
[WhiteElo "2243"]
[BlackElo "2362"]
[Result "0-1"]
[Round "04"]
[TimeControl "180+1"]
[Date "2022.06.15"]
[WhiteClock "0:00:02"]
[BlackClock "0:00:40"]

1. e4 {[%clk 0:03:00]}  d6 {[%clk 0:03:00]} 2. d4 {[%clk 0:03:00]}  Nf6 {[%clk 0:02:59]} 3. Bd3 {[%clk 0:03:00]}  c6 {[%clk 0:02:59]} 4. Nf3 {[%clk 0:03:00]}  e5 {[%clk 0:02:59]} 5. Nc3 {[%clk 0:03:00]}  Nbd7 {[%clk 0:02:59]} 6. O-O {[%clk 0:02:59]}  Be7 {[%clk 0:02:59]} 7. b3 {[%clk 0:02:56]}  O-O {[%clk 0:02:58]} 8. Bb2 {[%clk 0:02:57]}  Re8 {[%clk 0:02:58]} 9. dxe5 {[%clk 0:02:54]}  dxe5 {[%clk 0:02:58]} 10. Na4 {[%clk 0:02:54]}  Qc7 {[%clk 0:02:57]} 11. c4 {[%clk 0:02:54]}  Bf8 {[%clk 0:02:55]} 12. Rc1 {[%clk 0:02:44]}  Nc5 {[%clk 0:02:55]} 13. Nxc5 {[%clk 0:02:39]}  Bxc5 {[%clk 0:02:56]} 14. a3 {[%clk 0:02:37]}  a5 {[%clk 0:02:53]} 15. h3 {[%clk 0:02:36]}  h6 {[%clk 0:02:50]} 16. Nh4 {[%clk 0:02:26]}  Be6 {[%clk 0:02:45]} 17. Qf3 {[%clk 0:02:25]}  Rad8 {[%clk 0:02:39]} 18. Rcd1 {[%clk 0:02:18]}  Nd7 {[%clk 0:02:28]} 19. Nf5 {[%clk 0:02:10]}  Bxf5 {[%clk 0:02:24]} 20. Qxf5 {[%clk 0:02:11]}  Bd4 {[%clk 0:02:11]} 21. Bxd4 {[%clk 0:02:09]}  exd4 {[%clk 0:02:11]} 22. e5 {[%clk 0:02:10]}  g6 {[%clk 0:02:01]} 23. Qf4 {[%clk 0:02:09]}  Qxe5 {[%clk 0:01:57]} 24. Qxh6 {[%clk 0:02:09]}  Nc5 {[%clk 0:01:55]} 25. b4 {[%clk 0:02:03]}  axb4 {[%clk 0:01:51]} 26. axb4 {[%clk 0:02:04]}  Ne6 {[%clk 0:01:51]} 27. Rfe1 {[%clk 0:01:35]}  Qf4 {[%clk 0:01:49]} 28. Qxf4 {[%clk 0:01:31]}  Nxf4 {[%clk 0:01:50]} 29. Bf1 {[%clk 0:01:32]}  Rxe1 {[%clk 0:01:41]} 30. Rxe1 {[%clk 0:01:33]}  c5 {[%clk 0:01:38]} 31. b5 {[%clk 0:00:40]}  d3 {[%clk 0:01:11]} 32. g3 {[%clk 0:00:39]}  Ne6 {[%clk 0:01:09]} 33. Rd1 {[%clk 0:00:38]}  d2 {[%clk 0:01:09]} 34. f4 {[%clk 0:00:28]}  Nd4 {[%clk 0:01:04]} 35. Kf2 {[%clk 0:00:25]}  Nb3 {[%clk 0:01:00]} 36. Bg2 {[%clk 0:00:25]}  b6 {[%clk 0:00:56]} 37. Be4 {[%clk 0:00:21]}  Rd4 {[%clk 0:00:54]} 38. Bd5 {[%clk 0:00:13]}  Kg7 {[%clk 0:00:54]} 39. Ke3 {[%clk 0:00:11]}  f5 {[%clk 0:00:53]} 40. g4 {[%clk 0:00:10]}  fxg4 {[%clk 0:00:51]} 41. hxg4 {[%clk 0:00:11]}  Kf6 {[%clk 0:00:52]} 42. Bg8 {[%clk 0:00:04]}  g5 {[%clk 0:00:49]} 43. fxg5+ {[%clk 0:00:03]}  Kxg5 {[%clk 0:00:48]} 44. Be6 {[%clk 0:00:04]}  Kf6 {[%clk 0:00:48]} 45. Bf5 {[%clk 0:00:05]}  Ke5 {[%clk 0:00:49]} 46. Bc2 {[%clk 0:00:04]}  Na5 {[%clk 0:00:47]} 47. g5 {[%clk 0:00:04]}  Nxc4+ {[%clk 0:00:47]} 48. Ke2 {[%clk 0:00:04]}  Rg4 {[%clk 0:00:45]} 49. g6 {[%clk 0:00:04]}  Kd4 {[%clk 0:00:45]} 50. Bf5 {[%clk 0:00:02]}  Rg5 {[%clk 0:00:43]} 51. Be6 {[%clk 0:00:02]}  Re5+ {[%clk 0:00:41]} 52. Kf3 {[%clk 0:00:02]}  Rxe6 {[%clk 0:00:41]} 53. Rg1 {[%clk 0:00:02]}  Rxg6 {[%clk 0:00:40]} 0-1


[Site "https://www.chess.com"]

[Event "Titled Tuesday Blitz June 14 Late 2022"]
[White "Martinez Reyes, Pedro Ramon"]
[Black "Hambleton, Aman"]
[WhiteFideId "3901807"]
[BlackFideId "2606577"]
[WhiteElo "2410"]
[BlackElo "2552"]
[Result "0-1"]
[Round "04"]
[TimeControl "180+1"]
[Date "2022.06.14"]
[WhiteClock "0:00:11"]
[BlackClock "0:00:04"]

1. e4 {[%clk 0:03:00]}  b6 {[%clk 0:02:59]} 2. d4 {[%clk 0:03:00]}  Bb7 {[%clk 0:02:58]} 3. Bd3 {[%clk 0:03:01]}  e6 {[%clk 0:02:55]} 4. Nf3 {[%clk 0:03:00]}  d5 {[%clk 0:02:54]} 5. exd5 {[%clk 0:02:59]}  Qxd5 {[%clk 0:02:55]} 6. Nc3 {[%clk 0:02:58]}  Bb4 {[%clk 0:02:55]} 7. O-O {[%clk 0:02:57]}  Bxc3 {[%clk 0:02:54]} 8. bxc3 {[%clk 0:02:58]}  Nf6 {[%clk 0:02:52]} 9. a4 {[%clk 0:02:54]}  O-O {[%clk 0:02:44]} 10. Qe2 {[%clk 0:02:48]}  Nbd7 {[%clk 0:02:31]} 11. Bf4 {[%clk 0:02:43]}  Qh5 {[%clk 0:02:28]} 12. a5 {[%clk 0:02:35]}  c5 {[%clk 0:02:22]} 13. Ne5 {[%clk 0:02:21]}  Qxe2 {[%clk 0:02:19]} 14. Bxe2 {[%clk 0:02:22]}  Nd5 {[%clk 0:01:43]} 15. Bf3 {[%clk 0:01:36]}  Nxe5 {[%clk 0:01:11]} 16. Bxe5 {[%clk 0:01:34]}  Ba6 {[%clk 0:00:51]} 17. Rfe1 {[%clk 0:01:20]}  cxd4 {[%clk 0:00:27]} 18. Bxd4 {[%clk 0:01:14]}  Bc4 {[%clk 0:00:15]} 19. Reb1 {[%clk 0:00:59]}  Rac8 {[%clk 0:00:13]} 20. axb6 {[%clk 0:00:55]}  axb6 {[%clk 0:00:14]} 21. Ra7 {[%clk 0:00:54]}  b5 {[%clk 0:00:10]} 22. h4 {[%clk 0:00:52]}  h6 {[%clk 0:00:08]} 23. Rb7 {[%clk 0:00:51]}  Rfd8 {[%clk 0:00:06]} 24. Ra1 {[%clk 0:00:51]}  Rb8 {[%clk 0:00:05]} 25. Rba7 {[%clk 0:00:44]}  Re8 {[%clk 0:00:05]} 26. Rd7 {[%clk 0:00:43]}  Ra8 {[%clk 0:00:03]} 27. Raa7 {[%clk 0:00:38]}  Rxa7 {[%clk 0:00:03]} 28. Rxa7 {[%clk 0:00:38]}  e5 {[%clk 0:00:03]} 29. Bxd5 {[%clk 0:00:30]}  Bxd5 {[%clk 0:00:04]} 30. Bc5 {[%clk 0:00:28]}  Rc8 {[%clk 0:00:03]} 31. Bb4 {[%clk 0:00:28]}  f6 {[%clk 0:00:03]} 32. f3 {[%clk 0:00:27]}  h5 {[%clk 0:00:02]} 33. Kf2 {[%clk 0:00:28]}  Be6 {[%clk 0:00:02]} 34. Re7 {[%clk 0:00:27]}  Bf5 {[%clk 0:00:02]} 35. Rb7 {[%clk 0:00:27]}  Bxc2 {[%clk 0:00:02]} 36. Rxb5 {[%clk 0:00:27]}  Rc7 {[%clk 0:00:02]} 37. Rb8+ {[%clk 0:00:26]}  Kf7 {[%clk 0:00:03]} 38. Ra8 {[%clk 0:00:26]}  Rd7 {[%clk 0:00:03]} 39. c4 {[%clk 0:00:22]}  Bb3 {[%clk 0:00:02]} 40. c5 {[%clk 0:00:22]}  Rd4 {[%clk 0:00:02]} 41. Ba3 {[%clk 0:00:18]}  Rc4 {[%clk 0:00:02]} 42. Ra7+ {[%clk 0:00:18]}  Kg6 {[%clk 0:00:02]} 43. Rc7 {[%clk 0:00:17]}  Rc2+ {[%clk 0:00:03]} 44. Ke3 {[%clk 0:00:17]}  Rxg2 {[%clk 0:00:03]} 45. c6 {[%clk 0:00:17]}  Rc2 {[%clk 0:00:03]} 46. Bf8 {[%clk 0:00:18]}  Bf7 {[%clk 0:00:03]} 47. Rc8 {[%clk 0:00:18]}  Rc3+ {[%clk 0:00:03]} 48. Kd2 {[%clk 0:00:17]}  Rc4 {[%clk 0:00:03]} 49. c7 {[%clk 0:00:18]}  Be6 {[%clk 0:00:04]} 50. Re8 {[%clk 0:00:18]}  Rxc7 {[%clk 0:00:02]} 51. Rxe6 {[%clk 0:00:18]}  Kf7 {[%clk 0:00:03]} 52. Bd6 {[%clk 0:00:17]}  Rd7 {[%clk 0:00:03]} 53. Re7+ {[%clk 0:00:10]}  Rxe7 {[%clk 0:00:03]} 54. Bxe7 {[%clk 0:00:11]}  Kxe7 {[%clk 0:00:04]} 0-1


[Site "https://www.chess.com"]

[Event "Titled Tuesday Blitz June 14 Late 2022"]
[White "Mickiewicz, Piotr"]
[Black "Tarigan, Gilbert Elroy"]
[WhiteFideId "1114891"]
[BlackFideId "7108133"]
[WhiteElo "2209"]
[BlackElo "1908"]
[Result "0-1"]
[Round "04"]
[TimeControl "180+1"]
[Date "2022.06.15"]
[WhiteClock "0:00:10"]
[BlackClock "0:00:06"]

1. e4 {[%clk 0:03:00]}  c5 {[%clk 0:02:59]} 2. Nf3 {[%clk 0:03:00]}  d6 {[%clk 0:02:59]} 3. d4 {[%clk 0:03:00]}  cxd4 {[%clk 0:03:00]} 4. Nxd4 {[%clk 0:03:00]}  Nf6 {[%clk 0:03:01]} 5. Nc3 {[%clk 0:03:00]}  a6 {[%clk 0:03:02]} 6. Be2 {[%clk 0:03:00]}  b5 {[%clk 0:02:56]} 7. Bf3 {[%clk 0:02:54]}  e5 {[%clk 0:02:45]} 8. Nf5 {[%clk 0:02:53]}  h6 {[%clk 0:02:45]} 9. Ne3 {[%clk 0:02:49]}  Be6 {[%clk 0:02:44]} 10. Ncd5 {[%clk 0:02:47]}  Nbd7 {[%clk 0:02:42]} 11. a4 {[%clk 0:02:43]}  Bxd5 {[%clk 0:02:38]} 12. Nxd5 {[%clk 0:02:41]}  Nxd5 {[%clk 0:02:38]} 13. Qxd5 {[%clk 0:02:40]}  bxa4 {[%clk 0:02:36]} 14. Rxa4 {[%clk 0:02:27]}  Be7 {[%clk 0:02:34]} 15. O-O {[%clk 0:02:19]}  O-O {[%clk 0:02:35]} 16. Be3 {[%clk 0:02:17]}  Nb6 {[%clk 0:02:32]} 17. Bxb6 {[%clk 0:02:16]}  Qxb6 {[%clk 0:02:33]} 18. b4 {[%clk 0:02:10]}  g6 {[%clk 0:02:24]} 19. Rfa1 {[%clk 0:02:05]}  Rfc8 {[%clk 0:02:18]} 20. c4 {[%clk 0:02:01]}  Kg7 {[%clk 0:02:12]} 21. g3 {[%clk 0:01:43]}  h5 {[%clk 0:02:10]} 22. h4 {[%clk 0:01:40]}  Rab8 {[%clk 0:02:09]} 23. Kg2 {[%clk 0:01:39]}  Qc6 {[%clk 0:01:58]} 24. Be2 {[%clk 0:01:22]}  Qxd5 {[%clk 0:01:48]} 25. exd5 {[%clk 0:01:21]}  e4 {[%clk 0:01:37]} 26. Rb1 {[%clk 0:01:11]}  Rb6 {[%clk 0:01:32]} 27. Rb3 {[%clk 0:01:01]}  Rcb8 {[%clk 0:01:22]} 28. Kf1 {[%clk 0:01:00]}  Bf6 {[%clk 0:01:19]} 29. f4 {[%clk 0:00:53]}  Bd4 {[%clk 0:01:13]} 30. b5 {[%clk 0:00:39]}  Bc5 {[%clk 0:01:04]} 31. Ke1 {[%clk 0:00:33]}  Kf6 {[%clk 0:00:56]} 32. Kd1 {[%clk 0:00:32]}  Bf2 {[%clk 0:00:52]} 33. Kc2 {[%clk 0:00:31]}  axb5 {[%clk 0:00:52]} 34. Rxb5 {[%clk 0:00:29]}  Bxg3 {[%clk 0:00:46]} 35. Rxb6 {[%clk 0:00:25]}  Rxb6 {[%clk 0:00:46]} 36. c5 {[%clk 0:00:25]}  dxc5 {[%clk 0:00:44]} 37. Rxe4 {[%clk 0:00:24]}  Rb4 {[%clk 0:00:38]} 38. Rxb4 {[%clk 0:00:16]}  cxb4 {[%clk 0:00:39]} 39. Kb3 {[%clk 0:00:15]}  Bxf4 {[%clk 0:00:33]} 40. Kxb4 {[%clk 0:00:15]}  Ke7 {[%clk 0:00:18]} 41. Kc5 {[%clk 0:00:16]}  Bg3 {[%clk 0:00:18]} 42. Kc6 {[%clk 0:00:16]}  Bxh4 {[%clk 0:00:09]} 43. d6+ {[%clk 0:00:16]}  Ke8 {[%clk 0:00:08]} 44. Bc4 {[%clk 0:00:16]}  Bd8 {[%clk 0:00:07]} 45. Bb5 {[%clk 0:00:14]}  Ba5 {[%clk 0:00:06]} 46. Kb7+ {[%clk 0:00:14]}  Kd8 {[%clk 0:00:06]} 47. Kc6 {[%clk 0:00:13]}  h4 {[%clk 0:00:06]} 48. Bc4 {[%clk 0:00:14]}  f5 {[%clk 0:00:05]} 49. Bf7 {[%clk 0:00:13]}  h3 {[%clk 0:00:03]} 50. Bd5 {[%clk 0:00:12]}  g5 {[%clk 0:00:03]} 51. d7 {[%clk 0:00:11]}  g4 {[%clk 0:00:03]} 52. Kd6 {[%clk 0:00:11]}  g3 {[%clk 0:00:04]} 53. Ke5 {[%clk 0:00:09]}  g2 {[%clk 0:00:04]} 54. Bxg2 {[%clk 0:00:09]}  hxg2 {[%clk 0:00:05]} 55. Kxf5 {[%clk 0:00:10]}  g1=Q {[%clk 0:00:06]} 0-1


[Site "https://www.chess.com"]